{"text_format":"1","workbook":"xlsx","n_sheets":1,"sheets":["Sheet1"],"not_rendered":{"charts":0,"images":6,"macros":1,"external_links":0,"defined_names":3,"comments":0,"pivot_tables":0},"unopened":[],"bounds":{"document_bytes":16777216,"sheet_cells":100000,"rows_first":2000,"rows_last":500,"rows_between":2000,"halvings":0,"cell_chars":16384,"cell_head_chars":4096},"cells_cut":0,"cells_raw":0,"read":"whole","date_system":"1900"}

{"sheet":"Sheet1","index":0,"n_rows":49,"n_cols":40,"rows_kept":49,"cut":false,"hidden":false,"merged":[[0,0,0,17],[1,0,1,17],[3,0,3,1],[3,2,3,8],[3,9,3,11],[3,12,3,17],[4,0,4,1],[4,2,4,4],[4,6,4,8],[4,9,4,11],[4,15,4,16],[5,0,5,1],[5,2,5,17],[6,0,6,1],[6,2,6,8],[6,9,6,12],[6,13,6,17],[15,0,15,1],[15,2,15,17],[16,0,16,4],[16,5,16,9],[16,10,16,17],[33,0,33,4],[33,5,33,17],[34,0,34,4],[34,5,34,17],[39,7,39,17],[44,0,44,4],[44,5,44,17],[45,0,45,4],[45,5,45,17],[17,4,18,4],[27,4,28,4],[29,4,30,4],[31,4,32,4],[25,10,26,17],[25,0,26,4],[25,5,26,9],[27,5,28,9],[31,0,32,3],[40,5,41,17],[42,5,43,17],[31,5,32,17],[35,5,36,17],[37,5,38,17],[42,0,43,4],[35,0,36,4],[37,0,39,4],[40,0,41,4],[13,2,14,17],[27,10,28,17],[29,5,30,17],[27,0,28,3],[29,0,30,3],[46,0,47,17],[48,0,49,17],[10,0,11,1],[13,0,14,1],[23,5,24,17],[21,0,22,4],[19,0,20,4],[17,5,18,9],[17,10,18,17],[19,5,20,17],[21,5,22,17],[23,0,24,4],[17,0,18,3],[10,2,11,17]]}
["XXX\n启用日期：2023.01.01",null,null,null,null,null,null,null,null,null,null,null,null,null,null,null,null,null,null,null,null,null,null,null,null,null,"/"]
[" 铬元素分析 原始记录表",null,null,null,null,null,null,null,null,null,null,null,null,null,null,null,null,null,"铬（以 Cr 计）",null,null,null,null,null,null,null,{"$f":"INDIRECT(\"aa1\")","v":"/"}]
[null,null,null,null,null,null,null,null,null,null,null,null,null,null,null,null,null,null,null,null,"","",null,null,null,null,{"$f":"MID(INDIRECT(\"aa1\"),1,LEN(INDIRECT(\"aa1\"))-47)","v":{"$error":"#VALUE!"}}]
["样品名称：",null,"X",null,null,null,null,null,null,"样品编号：",null,null,"X",null,null,null,null,null,"TW-JCYQ005-2014 原子吸收光谱仪（含冷却循环水）(有效期：2024-08-07)\nTW-JCYQ907-2021 电子天平(精度0.0001g)(有效期：2023-07-03)"]
["检验日期：",null,"2.23-3-29",null,null,"-","/",null,null,"环境条件：",null,null,19.5," ℃",51,"%RH",null,null,"TW-JCYQ005-2014 原子吸收光谱仪（含冷却循环水）(有效期：2024-08-07)"]
["检测仪器：",null,"YQ/A-014,YQ/T-003",null,null,null,null,null,null,null,null,null,null,null,null,null,null,null,"微波消解：称取干试样0.2g～0.6g（精确至0.0001g）置于微波消解罐中，加5mL硝酸和2mL过氧化氢。消解完毕，待消解罐冷却后打开，消化液呈无色或淡黄色，加热赶酸至近干，定容备用。"]
["检测依据：",null,"X",null,null,null,null,null,null,"标准品信息编号：",null,null,null,"X",null,null,null,null,null,null,null,null,null,null,null,null,null,"稀释倍数","定容体积1","吸取体积1","定容体积2","吸取体积2","定容体积3","吸取体积3"]
[null,null,null,null,null,null,null,null,null,null,null,null,null,null,null,null,null,null,null,null,null,null,null,null,null,null,null,2,5,10]
[null,null,null,null,null,null,null,null,null,null,null,null,null,null,null,null,null,null,null,null,null,null,null,null,null,null,null,5,1,5]
[null,null,null,null,null,null,null,null,null,null,null,null,null,null,null,null,null,null,null,null,null,null,null,null,null,null,null,10,1,10]
["仪器条件信息",null,"波长：228.80nm                 灯电流：7.5mA                      狭缝：1.3nm                  \n干燥温度140℃,干燥时间40s;      灰化温度300℃,灰化时间20s;                                原子化温度1000℃,原子化时间5s",null,null,null,null,null,null,null,null,null,null,null,null,null,null,null,null,null,null,null,null,null,null,null,null,20,0.5,10]
[null,null,null,null,null,null,null,null,null,null,null,null,null,null,null,null,null,null,null,null,null,null,null,null,null,null,null,25,1,25]
[null,null,null,null,null,null,null,null,null,null,null,null,null,null,null,null,null,null,null,null,null,null,null,null,null,null,null,40,0.25,10]
["试样消解：",null,"微波消解：称取干试样0.2g～0.6g（精确至0.0001g）置于微波消解罐中，加5mL硝酸和2mL过氧化氢。消解完毕，待消解罐冷却后打开，消化液呈无色或淡黄色，加热赶酸至近干，定容备用。",null,null,null,null,null,null,null,null,null,null,null,null,null,null,null,null,null,null,null,null,null,null,null,null,50,0.5,25]
[null,null,null,null,null,null,null,null,null,null,null,null,null,null,null,null,null,null,null,null,null,null,null,null,null,null,null,100,0.1,10]
["样品稀释：",null,{"$f":"IF($F$22>3124,CONCATENATE($AB$40,$AC$40,$AD$40,$AE$40,$AF$40,$AG$40,$AH$40,$AI$40,$AJ$40,$AK$40,$AL$40,$AM$40,$AN$40),IF($F$22>100,CONCATENATE($AB$39,$AC$39,$AD$39,$AE$39,$AF$39,$AG$39,$AH$39,$AI$39,$AJ$39),IF($F$22=1,\"/\",CONCATENATE($AB$38,$AC$38,$AD$38,$AE$38,$AF$38))))","v":"/"},null,null,null,null,null,null,null,null,null,null,null,null,null,null,null,null,null,null,null,null,null,null,null,null,125,1,5,1,25]
["样品序号：",null,null,null,null,1,null,null,null,null,2,null,null,null,null,null,null,null,null,null,null,null,null,null,null,null,null,200,1,10,0.5,10]
["称样量或量取体积m/",null,null,null,"g",0.4562,null,null,null,null,0,null,null,null,null,null,null,null,null,null,null,null,null,null,null,null,null,250,1,25,1,10]
[null,null,null,null,null,null,null,null,null,null,null,null,null,null,null,null,null,null,null,null,null,null,null,null,null,null,null,400,0.5,10,0.5,10]
["消化液定容体积V/mL",null,null,null,null,25,null,null,null,null,null,null,null,null,null,null,null,null,null,null,null,null,null,null,null,null,null,500,0.5,25,1,10]
[null,null,null,null,null,null,null,null,null,null,null,null,null,null,null,null,null,null,null,null,null,null,null,null,null,null,null,625,1,25,1,25]
["稀释倍数f",null,null,null,null,1,null,null,null,null,null,null,null,null,null,null,null,null,null,null,null,null,null,null,null,null,null,1000,0.1,10,1,10]
[null,null,null,null,null,null,null,null,null,null,null,null,null,null,null,null,null,null,null,null,null,null,null,null,null,null,null,1250,1,25,0.5,25]
["空白溶液中铬质量浓度ρ0/(μg/L)",null,null,null,null,0.7635,null,null,null,null,null,null,null,null,null,null,null,null,null,null,null,null,null,null,null,null,null,2000,0.1,10,0.5,10]
[null,null,null,null,null,null,null,null,null,null,null,null,null,null,null,null,null,null,null,null,null,null,null,null,null,null,null,2500,0.1,10,1,25]
["试样溶液中铬的质量浓度\nρ/(μg/L)",null,null,null,null,1.022,null,null,null,null,"/",null,null,null,null,null,null,null,null,null,null,null,null,null,null,null,null,3125,1,25,1,5,1,25]
[null,null,null,null,null,null,null,null,null,null,null,null,null,null,null,null,null,null,{"$f":"ROUNDx((F26-F24)*F20*F22/(F18*1000),4)","v":0.0142},null,null,null,null,null,null,null,null,4000,0.5,10,0.5,10,1,10]
["样品中铬的含量X/",null,null,null,{"$f":"IF(LEN(E18)=1,\"(mg/kg)\",\"(mg/L)\")","v":"(mg/kg)"},{"$f":"IF((F26-F24)<=0,0,S27)","v":0.0142},null,null,null,null,"/",null,null,null,null,null,null,null,{"$f":"ROUNDx((K26-F24)*F20*F22/(K18*1000),4)","v":{"$error":"#VALUE!"}},null,null,null,null,null,null,null,null,5000,0.5,25,1,10,1,10]
[null,null,null,null,null,null,null,null,null,null,null,null,null,null,null,null,null,null,null,null,null,null,null,null,null,null,null,6250,1,25,1,25,1,10]
["样品中铬的含量",null,null,null,{"$f":"E28","v":"(mg/kg)"},{"$f":"ROUNDx(AVERAGE(F28,K28),4)","v":0.0142},null,null,null,null,null,null,null,null,null,null,null,null,null,null,null,null,null,null,null,null,null,10000,0.1,10,1,10,1,10]
[null,null,null,null,null,null,null,null,null,null,null,null,null,null,null,null,null,null,null,null,null,null,null,null,null,null,null,12500,0.1,10,1,5,1,25]
["报出值",null,null,null,{"$f":"E28","v":"(mg/kg)"},{"$f":"IF(F30<0.03,\"未检出\",ValidityRound(F30,2))","v":"未检出"},null,null,null,null,null,null,null,null,null,null,null,null,null,null,null,null,null,null,null,null,null,25000,0.1,10,1,25,1,10]
[null,null,null,null,null,null,null,null,null,null,null,null,null,null,null,null,null,null,null,null,null,null,null,null,null,null,null,31250,1,25,0.5,25,1,25]
["检出限",null,null,null,null,"0.01mg/kg",null,null,null,null,null,null,null,null,null,null,null,null,null,null,null,null,null,null,null,null,null,40000,0.5,10,0.5,0.5,0.1,10]
["定量限",null,null,null,null,"0.03mg/kg",null,null,null,null,null,null,null,null,null,null,null,null,null,null,null,null,null,null,null,null,null,50000,0.1,10,1,25,0.5,10]
["含量公式",null,null,null,null,null,null,null,null,null,null,null,null,null,null,null,null,null,null,null,null,null,null,null,null,null,null,62500,1,25,1,25,0.1,10]
[null,null,null,null,null,null,null,null,null,null,null,null,null,null,null,null,null,null,null,null,null,null,null,null,null,null,null,100000,0.1,10,0.1,10,1,10]
["平行误差",null,null,null,null,"标准规定，在重复性条件下获得的两次独立测定结果的绝对差值不得超过算术平均值的20% ；",null,null,null,null,null,null,null,null,null,null,null,null,null,null,null,null,null,null,null,null,null,"吸取样液",{"$f":"VLOOKUP($F$22,$AB$8:$AH$37,2,0)","v":{"$error":"#N/A"}},"mL，稀释定容至",{"$f":"VLOOKUP($F$22,$AB$8:$AH$37,3,0)","v":{"$error":"#N/A"}},"mL"]
[null,null,null,null,null,null,null,null,null,null,null,null,null,null,null,null,null,null,0.2,null,null,null,null,null,null,null,null,"吸取样液",{"$f":"VLOOKUP($F$22,$AB$8:$AH$37,2,0)","v":{"$error":"#N/A"}},"mL，稀释定容至",{"$f":"VLOOKUP($F$22,$AB$8:$AH$37,3,0)","v":{"$error":"#N/A"}},"mL，从上述溶液中吸取",{"$f":"VLOOKUP($F$22,$AB$8:$AH$37,4,0)","v":{"$error":"#N/A"}},"mL，稀释定容至",{"$f":"VLOOKUP($F$22,$AB$8:$AH$37,5,0)","v":{"$error":"#N/A"}},"mL"]
[null,null,null,null,null,"实际　  　","/",{"$f":"IF(G40=\"/\",\"\",IF(VALUE(G40)>S39,\"不符合标准要求\",\"符合标准要求\"))","v":""},null,null,null,null,null,null,null,null,null,null,null,null,null,null,null,null,null,null,null,"吸取样液",{"$f":"VLOOKUP($F$22,$AB$8:$AH$37,2,0)","v":{"$error":"#N/A"}},"mL，稀释定容至",{"$f":"VLOOKUP($F$22,$AB$8:$AH$37,3,0)","v":{"$error":"#N/A"}},"mL，从上述溶液中吸取",{"$f":"VLOOKUP($F$22,$AB$8:$AH$37,4,0)","v":{"$error":"#N/A"}},"mL，稀释定容至",{"$f":"VLOOKUP($F$22,$AB$8:$AH$37,5,0)","v":{"$error":"#N/A"}},"mL，继续从上述溶液中吸取",{"$f":"VLOOKUP($F$22,$AB$8:$AH$37,6,0)","v":{"$error":"#N/A"}},"mL，稀释定容至",{"$f":"VLOOKUP($F$22,$AB$8:$AH$37,7,0)","v":{"$error":"#N/A"}},"mL"]
["标准谱图及质控记录附",null,null,null,null,{"$f":"IF(S41=1,LEFT(INDIRECT(\"T41\"),11),RIGHT(INDIRECT(\"T41\"),11))","v":"/"},null,null,null,null,null,null,null,null,null,null,null,null,1,"/"]
[]
["报出值要求",null,null,null,null,"当分析结果≥１ｍｇ／ｋｇ时，保留三位有效数字；当分析结果＜１ｍｇ／ｋｇ时，保留两位有效数结果保留两位有效数字"]
[]
["备注",null,null,null,null,"/"]
["检测地点",null,null,null,null,"光谱室Ⅰ"]
[""]
[]
[""]